fUST/lending_fUST_20250630
["ID","MTS","AMOUNT","RATE_DAILY","PERIOD"]
[368633143,1751253057947,-460.0,0.00020981,2]
[368633144,1751253057956,-5033.76,0.00020982,2]
[368633145,1751253057965,-1330.15,0.00020982,2]
[368633146,1751253057975,-460.0,0.00020992,2]
[368633147,1751253057984,-683.44,0.00020993,2]
[368633148,1751253057993,-635.44,0.00021,3]
[368633149,1751253058003,-500.0,0.00021,3]
[368633150,1751253058012,-500.0,0.00021,3]
[368633151,1751253058022,-500.0,0.00021,3]
[368633152,1751253058033,-500.0,0.00021,3]
[368633153,1751253058042,-3000.0,0.00021,2]
[368633154,1751253058054,-3000.0,0.0002101,2]
[368633155,1751253058064,-366.3004382,0.00021014,2]
[368633156,1751253058074,-366.3004382,0.00021014,2]
[368633157,1751253058084,-366.3004382,0.00021014,2]
[368633158,1751253058093,-3000.0,0.0002102,2]
[368633159,1751253058103,-3000.0,0.0002103,2]
[368633160,1751253058113,-3000.0,0.0002104,2]
[368633161,1751253058122,-151.0,0.0002104,4]
[368633162,1751253058131,-366.3004382,0.00021041,2]
[368633163,1751253058140,-176.70092935,0.00021043,18]
[368633164,1751253058151,-3000.0,0.0002105,2]
[368633165,1751253058160,-3000.0,0.0002106,2]
[368633166,1751253058169,-3000.0,0.0002107,2]
[368633167,1751253058179,-3000.0,0.0002108,2]
[368633168,1751253058188,-3000.0,0.0002109,2]
[368633169,1751253058197,-2576.65,0.000211,2]
[368633170,1751253058207,-3000.0,0.000211,2]
[368633171,1751253058216,-3000.0,0.0002111,2]
[368633172,1751253058225,-3000.0,0.0002112,2]
[368633173,1751253058235,-3000.0,0.0002113,2]
[368633174,1751253058244,-3000.0,0.0002114,2]
[368633175,1751253058253,-4942.01093482,0.00021141,4]
[368633176,1751253058263,-3000.0,0.0002115,2]
[368633177,1751253058272,-3000.0,0.0002116,2]
[368633178,1751253058282,-3000.0,0.0002117,2]
[368633179,1751253058291,-3000.0,0.0002118,2]
[368633180,1751253058301,-3001.230928,0.0002119,2]
[368633181,1751253058311,-501.59875828,0.000212,2]
[368633182,1751253058320,-151.0,0.00021232,4]
[368633183,1751253058329,-460.0,0.00021251,2]
[368633184,1751253058338,-1317.79,0.00021251,2]
[368633185,1751253058347,-908.59,0.00021252,2]
[368633186,1751253058356,-1897.47,0.00021252,2]
[368633187,1751253058365,-2100.5,0.00021252,2]
[368633188,1751253058374,-460.0,0.00021252,2]
[368633189,1751253058384,-460.0,0.00021252,2]
[368633190,1751253058393,-1992.91,0.00021252,2]
[368633191,1751253058403,-1855.7,0.00021252,2]
[368633192,1751253058412,-2731.33,0.00021252,2]
[368633193,1751253058421,-460.0,0.00021252,2]
[368633194,1751253058430,-1236.31,0.00021252,2]
[368633195,1751253058440,-680.87,0.00021252,2]
[368633196,1751253058448,-530.93,0.00021252,2]
[368633197,1751253058458,-327.1356276,0.00021252,2]
[368633198,1751253058467,-1348.32,0.00021253,2]
[368633199,1751253058480,-460.0,0.00021253,2]
[368633200,1751253058490,-677.1,0.00021253,2]
[368633201,1751253058499,-460.0,0.00021253,2]
[368633202,1751253058508,-562.76,0.00021253,2]
[368633203,1751253058517,-460.0,0.00021253,2]
[368633204,1751253058527,-730.03,0.00021253,2]
[368633205,1751253058535,-460.0,0.00021253,2]
[368633206,1751253058545,-617.08,0.00021253,2]
[368633207,1751253058555,-460.0,0.00021253,2]
[368633208,1751253058564,-460.0,0.00021254,2]
[368633209,1751253058573,-467.72,0.00021254,2]
[368633210,1751253058583,-460.0,0.00021254,2]
[368633211,1751253058592,-4152.47,0.00021254,2]
[368633212,1751253058601,-1076.4,0.00021254,2]
[368633213,1751253058611,-616.92,0.00021254,2]
[368633214,1751253058621,-668.05,0.00021254,2]
[368633215,1751253058630,-1701.05,0.00021254,2]
[368633216,1751253058639,-460.0,0.00021255,2]
[368633217,1751253058649,-637.03,0.00021255,2]
[368633218,1751253058658,-607.46,0.00021255,2]
[368633219,1751253058668,-460.0,0.00021255,2]
[368633220,1751253058677,-1031.72,0.00021255,2]
[368633221,1751253058686,-460.0,0.00021255,2]
[368633222,1751253058695,-747.14,0.00021255,2]
[368633223,1751253058704,-1251.82,0.00021255,2]
[368633224,1751253058713,-1642.67,0.00021255,2]
[368633225,1751253058723,-525.79,0.00021255,2]
[368633226,1751253058732,-460.0,0.00021255,2]
[368633227,1751253058741,-934.86,0.00021255,2]
[368633228,1751253058750,-1645.98,0.00021255,2]
[368633229,1751253058759,-460.0,0.00021255,2]
[368633230,1751253058768,-5033.76,0.00021256,2]
[368633231,1751253058778,-1330.15,0.00021256,2]
[368633232,1751253058788,-460.0,0.00021266,2]
[368633233,1751253058797,-683.44,0.00021267,2]
[368633234,1751253058807,-6868.24730571,0.0002128,2]
[368633235,1751253058816,-236.0,0.00021281,2]
[368633236,1751253058825,-500.0,0.000213,3]
[368633237,1751253058836,-500.0,0.000213,3]
[368633238,1751253058849,-500.0,0.000213,3]
[368633239,1751253058857,-500.0,0.000213,3]
[368633240,1751253058867,-3000.0,0.00021312,2]
[368633241,1751253058877,-4942.01093482,0.00021314,5]
[368633242,1751253058886,-236.0,0.00021343,2]
[368633243,1751253058895,-500.0,0.00021348,2]
[368633244,1751253058904,-373.45339373,0.00021356,2]
[368633245,1751253058913,-173.5557,0.00021398,4]
[368633246,1751253058923,-2200.0,0.00021405,2]
[368633247,1751253058933,-236.0,0.00021413,2]
[368633248,1751253058942,-151.0,0.00021424,5]
[368633249,1751253058952,-4942.01093482,0.00021486,5]
[368633250,1751253058961,-184.95909533,0.00021525,2]
[368633251,1751253058971,-1317.79,0.00021525,2]
[368633252,1751253058980,-908.59,0.00021526,2]
[368633253,1751253058990,-1897.47,0.00021526,2]
[368633254,1751253058999,-2100.5,0.00021526,2]
[368633255,1751253059008,-460.0,0.00021526,2]
[368633256,1751253059018,-460.0,0.00021526,2]
[368633257,1751253059027,-1992.91,0.00021526,2]
[368633258,1751253059036,-1855.7,0.00021526,2]
[368633259,1751253059046,-2731.33,0.00021526,2]
[368633260,1751253059056,-460.0,0.00021526,2]
[368633261,1751253059066,-1236.31,0.00021526,2]
[368633262,1751253059075,-680.87,0.00021526,2]
[368633263,1751253059085,-530.93,0.00021526,2]
[368633264,1751253059096,-1348.32,0.00021527,2]
[368633265,1751253059105,-460.0,0.00021527,2]
[368633266,1751253059114,-677.1,0.00021527,2]
[368633267,1751253059124,-460.0,0.00021527,2]
[368633268,1751253059133,-562.76,0.00021527,2]
[368633269,1751253059142,-460.0,0.00021527,2]
[368633270,1751253059152,-730.03,0.00021527,2]
[368633271,1751253059161,-460.0,0.00021527,2]
[368633272,1751253059170,-617.08,0.00021527,2]
[368633273,1751253059180,-460.0,0.00021527,2]
[368633274,1751253059189,-460.0,0.00021528,2]
[368633275,1751253059198,-467.72,0.00021528,2]
[368633276,1751253059207,-460.0,0.00021528,2]
[368633277,1751253059216,-4152.47,0.00021528,2]
[368633278,1751253059226,-1076.4,0.00021528,2]
[368633279,1751253059235,-616.92,0.00021528,2]
[368633280,1751253059244,-668.05,0.00021528,2]
[368633281,1751253059253,-1701.05,0.00021528,2]
[368633282,1751253059263,-460.0,0.00021529,2]
[368633283,1751253059274,-637.03,0.00021529,2]
[368633284,1751253059283,-607.46,0.00021529,2]
[368633285,1751253059294,-460.0,0.00021529,2]
[368633286,1751253059304,-1031.72,0.00021529,2]
[368633287,1751253059314,-187.13411325,0.00021529,2]
[368633288,1751253059323,-747.14,0.00021529,2]
[368633289,1751253059334,-1251.82,0.00021529,2]
[368633290,1751253059345,-1642.67,0.00021529,2]
[368633291,1751253059354,-525.79,0.00021529,2]
[368633292,1751253059364,-460.0,0.00021529,2]
[368633293,1751253059374,-934.86,0.00021529,2]
[368633294,1751253059384,-1645.98,0.00021529,2]
[368633295,1751253059394,-460.0,0.00021529,2]
[368633296,1751253059405,-5033.76,0.0002153,2]
[368633297,1751253059415,-1330.15,0.0002153,2]
[368633298,1751253059426,-460.0,0.0002154,2]
[368633299,1751253059436,-683.44,0.00021541,2]
[368633300,1751253059446,-236.0,0.00021605,2]
[368633301,1751253059455,-151.0,0.00021616,5]
[368633302,1751253059465,-236.0,0.0002164,2]
[368633303,1751253059474,-4942.01093482,0.00021659,5]
[368633304,1751253059483,-4000.0,0.00021667,4]
[368633305,1751253059494,-82764.7101755,0.00021669,2]
[368633306,1751253059504,-879.669628,0.00021669,2]
[368633307,1751253059514,-879.669628,0.00021669,2]
[368633308,1751253059524,-335.63176576,0.00021671,22]
[368633309,1751253059533,-236.0,0.00021698,2]
[368633310,1751253059542,-245.0,0.000217,2]
[368633311,1751253059551,-160.0,0.00021734,4]
[368633312,1751253059560,-171.48448865,0.00021734,5]
[368633313,1751253059570,-160.0,0.00021734,5]
[368633314,1751253059579,-1317.79,0.00021799,2]
[368633315,1751253059589,-4656.76,0.000218,2]
[368633316,1751253059598,-908.59,0.000218,2]
[368633317,1751253059608,-1897.47,0.000218,2]
[368633318,1751253059618,-2100.5,0.000218,2]
[368633319,1751253059627,-460.0,0.000218,2]
[368633320,1751253059637,-460.0,0.000218,2]
[368633321,1751253059646,-1992.91,0.000218,2]
[368633322,1751253059655,-1855.7,0.000218,2]
[368633323,1751253059664,-2731.33,0.000218,2]
[368633324,1751253059673,-460.0,0.000218,2]
[368633325,1751253059682,-1236.31,0.000218,2]
[368633326,1751253059691,-680.87,0.000218,2]
[368633327,1751253059701,-530.93,0.000218,2]
[368633328,1751253059710,-1348.32,0.00021801,2]
[368633329,1751253059719,-460.0,0.00021801,2]
[368633330,1751253059728,-677.1,0.00021801,2]
[368633331,1751253059738,-460.0,0.00021801,2]
[368633332,1751253059746,-562.76,0.00021801,2]
[368633333,1751253059755,-460.0,0.00021801,2]
[368633334,1751253059765,-730.03,0.00021801,2]
[368633335,1751253059774,-460.0,0.00021801,2]
[368633336,1751253059783,-617.08,0.00021801,2]
[368633337,1751253059792,-479.37670197,0.00021801,2]
[368633338,1751253059801,-460.0,0.00021802,2]
[368633339,1751253059810,-467.72,0.00021802,2]
[368633340,1751253059819,-460.0,0.00021802,2]
[368633341,1751253059828,-4152.47,0.00021802,2]
[368633342,1751253059838,-1076.4,0.00021802,2]
[368633343,1751253059849,-616.92,0.00021802,2]
[368633344,1751253059859,-668.05,0.00021802,2]
[368633345,1751253059868,-1701.05,0.00021802,2]
[368633346,1751253059878,-460.0,0.00021803,2]
[368633347,1751253059890,-637.03,0.00021803,2]
[368633348,1751253059901,-607.46,0.00021803,2]
[368633349,1751253059910,-460.0,0.00021803,2]
[368633350,1751253059922,-1031.72,0.00021803,2]
[368633351,1751253059932,-747.14,0.00021803,2]
[368633352,1751253059941,-1251.82,0.00021803,2]
[368633353,1751253059950,-1642.67,0.00021803,2]
[368633354,1751253059959,-525.79,0.00021803,2]
[368633355,1751253059968,-460.0,0.00021803,2]
[368633356,1751253059977,-934.86,0.00021803,2]
[368633357,1751253059987,-1645.98,0.00021803,2]
[368633358,1751253059997,-460.0,0.00021803,2]
[368633359,1751253060008,-5033.76,0.00021804,2]
[368633360,1751253060017,-1330.15,0.00021804,2]
[368633361,1751253060027,-151.0,0.00021808,5]
[368633362,1751253060036,-460.0,0.00021814,2]
[368633363,1751253060046,-683.44,0.00021815,2]
[368633364,1751253060056,-6868.24730571,0.0002183,2]
[368633365,1751253060066,-4942.01093482,0.00021831,6]
[368633366,1751253060076,-186.5,0.00021835,15]
[368633367,1751253060085,-1000.0,0.00021838,5]
[368633368,1751253060096,-2747.87951182,0.0002186,2]
[368633369,1751253060105,-236.0,0.00021863,2]
[368633370,1751253060115,-2000.0,0.000219,2]
[368633371,1751253060124,-2000.0,0.000219,2]
[368633372,1751253060133,-2351.0,0.00021905,2]
[368633373,1751253060143,-151.0,0.00021918,2]
[368633374,1751253060153,-151.0,0.00021918,2]
[368633375,1751253060163,-151.0,0.00021918,2]
[368633376,1751253060172,-151.0,0.00021918,2]
[368633377,1751253060182,-151.0,0.00021918,2]
[368633378,1751253060192,-151.0,0.00021918,2]
[368633379,1751253060201,-151.0,0.00021918,2]
[368633380,1751253060211,-151.0,0.00021918,2]
[368633381,1751253060221,-151.0,0.00021918,2]
[368633382,1751253060231,-151.0,0.00021918,2]
[368633383,1751253060242,-151.0,0.00021918,2]
[368633384,1751253060252,-151.0,0.00021918,2]
[368633385,1751253060262,-151.0,0.00021918,2]
[368633386,1751253060272,-201.450247,0.00021918,2]
[368633387,1751253060282,-561.390194,0.00021918,2]
[368633388,1751253060292,-561.390194,0.00021918,2]
[368633389,1751253060301,-561.390194,0.00021918,2]
[368633390,1751253060311,-561.390194,0.00021918,2]
[368633391,1751253060320,-561.390194,0.00021918,2]
[368633392,1751253060329,-561.390194,0.00021918,2]
[368633393,1751253060339,-561.390194,0.00021918,2]
[368633394,1751253060348,-561.390194,0.00021918,2]
[368633395,1751253060357,-561.390194,0.00021918,2]
[368633396,1751253060367,-561.390194,0.00021918,2]
[368633397,1751253060376,-561.390194,0.00021918,2]
[368633398,1751253060385,-561.390194,0.00021918,2]
[368633399,1751253060394,-561.39018573,0.00021918,2]
[368633400,1751253060403,-150.0,0.00021918,2]
[368633401,1751253060412,-1142.47664435,0.00021918,2]
[368633402,1751253060421,-500.0,0.00021973,2]
[368633403,1751253060430,-500.0,0.00021973,2]
[368633404,1751253060439,-500.0,0.00021973,2]
[368633405,1751253060448,-500.0,0.00021973,2]
[368633406,1751253060457,-306.90086317,0.00021973,2]
[368633407,1751253060467,-500.0,0.00021973,2]
[368633408,1751253060476,-500.0,0.00021973,2]
[368633409,1751253060485,-500.0,0.00021973,2]
[368633410,1751253060607,-500.0,0.00021973,2]
[368633411,1751253060619,-500.46350834,0.00021973,2]
[368633412,1751253060629,-501.16901977,0.00021973,2]
[368633413,1751253060639,-500.0,0.00021973,2]
[368633414,1751253060648,-500.93177596,0.00021973,2]
[368633415,1751253060657,-500.0,0.00021973,2]
[368633416,1751253060667,-495.82097154,0.00021973,2]
[368633417,1751253060676,-535.06885935,0.00021973,2]
[368633418,1751253060685,-500.0,0.00021973,2]
[368633419,1751253060695,-500.6228669,0.00021973,2]
[368633420,1751253060705,-500.0,0.00021973,2]
[368633421,1751253060714,-500.0,0.00021973,2]
[368633422,1751253060724,-210.22072563,0.00021973,2]
[368633423,1751253060734,-500.0,0.00021973,2]
[368633424,1751253060743,-362.63861005,0.00021973,2]
[368633425,1751253060753,-500.0,0.00021973,2]
[368633426,1751253060763,-500.78958561,0.00021973,2]
[368633427,1751253060772,-611.32164072,0.00021973,2]
[368633428,1751253060782,-500.0,0.00021973,2]
[368633429,1751253060791,-500.54530461,0.00021973,2]
[368633430,1751253060801,-500.0,0.00021973,2]
[368633431,1751253060811,-349.53992227,0.00021973,2]
[368633432,1751253060822,-501.05506526,0.00021973,2]
[368633433,1751253060831,-500.0,0.00021973,2]
[368633434,1751253060843,-500.99214278,0.00021973,2]
[368633435,1751253060853,-167.44996719,0.00021973,2]
[368633436,1751253060863,-500.0,0.00021973,2]
[368633437,1751253060871,-500.0,0.00021973,2]
[368633438,1751253060881,-500.28227314,0.00021973,2]
[368633439,1751253060891,-500.43321266,0.00021973,2]
[368633440,1751253060900,-500.0,0.00021973,2]
[368633441,1751253060910,-417.72959227,0.00021973,2]
[368633442,1751253060920,-501.10579475,0.00021973,2]
[368633443,1751253060930,-423.2949172,0.00021973,2]
[368633444,1751253060940,-500.43541712,0.00021973,2]
[368633445,1751253060949,-500.41713589,0.00021973,2]
[368633446,1751253060958,-500.18829966,0.00021973,2]
[368633447,1751253060968,-500.0,0.00021973,2]
[368633448,1751253060978,-500.73388162,0.00021973,2]
[368633449,1751253060987,-500.0,0.00021973,2]
[368633450,1751253060996,-543.43743581,0.00021973,2]
[368633451,1751253061006,-616.73509144,0.00021973,2]
[368633452,1751253061015,-500.0,0.00021973,2]
[368633453,1751253061024,-501.06085111,0.00021973,2]
[368633454,1751253061033,-500.0,0.00021973,2]
[368633455,1751253061042,-500.0,0.00021973,2]
[368633456,1751253061051,-521.29076982,0.00021973,2]
[368633457,1751253061061,-500.0,0.00021973,2]
[368633458,1751253061071,-500.19386465,0.00021973,2]
[368633459,1751253061080,-500.40553689,0.00021973,2]
[368633460,1751253061089,-501.17881295,0.00021973,2]
[368633461,1751253061100,-500.0,0.00021973,2]
[368633462,1751253061109,-500.99318001,0.00021973,2]
[368633463,1751253061118,-501.1642395,0.00021973,2]
[368633464,1751253061128,-500.0,0.00021973,2]
[368633465,1751253061138,-153.30826967,0.00021973,2]
[368633466,1751253061147,-500.95432146,0.00021973,2]
[368633467,1751253061157,-500.0,0.00021973,2]
[368633468,1751253061166,-500.20162898,0.00021973,2]
[368633469,1751253061175,-500.0,0.00021973,2]
[368633470,1751253061184,-500.0,0.00021973,2]
[368633471,1751253061194,-500.88532515,0.00021973,2]
[368633472,1751253061203,-500.0,0.00021973,2]
[368633473,1751253061213,-360.00832558,0.00021973,2]
[368633474,1751253061223,-500.0,0.00021973,2]
[368633475,1751253061233,-600.0,0.00021973,2]
[368633476,1751253061242,-441.89255118,0.00021973,2]
[368633477,1751253061251,-500.0,0.00021973,2]
[368633478,1751253061261,-172.30950918,0.00021973,2]
[368633479,1751253061270,-161.03755053,0.00021973,2]
[368633480,1751253061279,-500.0,0.00021973,2]
[368633481,1751253061289,-500.0,0.00021973,2]
[368633482,1751253061298,-616790.53794982,0.0002198,7]
[368633483,1751253061308,-45880.13486219,0.00021997,2]
[368633484,1751253061441,-440.87003063,0.00018229,2]
[368633485,1751253061457,-59.12996937,0.00018229,2]
[368633486,1751253061467,-500.0,0.00018229,2]
[368633487,1751253061477,-500.0,0.00018229,2]
[368633488,1751253061486,-250.0,0.00018229,2]
[368633489,1751253061495,-500.0,0.00018229,2]
[368633490,1751253061504,-112.92157763,0.00018229,2]
[368633491,1751253061701,-520.67825905,0.00018229,2]
[368633492,1751253061710,-63.00647261,0.00018229,2]
[368633493,1751253061722,-436.99352739,0.00018229,2]
[368633494,1751253061731,-622.93344969,0.00018229,2]
[368633495,1751253061740,-194.55561249,0.00018229,2]
[368633496,1751253061750,-500.0,0.00018229,2]
[368633497,1751253061759,-200.85886659,0.00021918,2]
[368633498,1751253061769,-1596.73854384,0.00021997,2]
[368633499,1751253061860,-342.84261769,0.00018229,2]
[368633500,1751253061871,-157.15738231,0.00018229,2]
[368633501,1751253061881,-327.71396563,0.00018239,2]
[368633502,1751253061892,-132.28603437,0.00018239,2]
[368633503,1751253061904,-460.0,0.00018513,2]
[368633504,1751253061914,-337.97314148,0.00020095,2]
[368633505,1751253061925,-15573.46533155,0.00021997,2]
[368633506,1751253062093,-460.0,0.00018787,2]
[368633507,1751253062103,-460.0,0.00019061,2]
[368633508,1751253062113,-460.0,0.00019335,2]
[368633509,1751253062123,-4519.89317042,0.00021997,2]
[368633510,1751253062135,-1139.69041136,0.00021997,2]
[368633511,1751253062147,-756.12100073,0.00021997,2]
[368633512,1751253064631,-157.14764056,0.00018228,2]
[368633513,1751253066664,-142.85235944,0.00018228,2]
[368633527,1751253102755,248.8764746,0.00017417,2]
[368633534,1751253235777,224.879627,0.00013699,2]
[368633536,1751253328314,1600.0,0.00024658,120]
[368633538,1751253399977,-193.79139037,0.00018139,2]
[368633539,1751253405090,-21.96536582,0.00018139,2]
[368633540,1751253443448,-300.0,0.00018236,2]
[368633541,1751253443469,-1200.0,0.00018236,2]
[368633542,1751253443490,-300.0,0.00018236,2]
[368633543,1751253443511,-479.03542659,0.00018237,2]
[368633544,1751253443532,-468.6235028,0.00018237,2]
[368633545,1751253443553,-460.0,0.00018237,2]
[368633546,1751253443575,-460.0,0.00018237,2]
[368633547,1751253443598,-460.0,0.00018237,2]
[368633548,1751253443620,-460.0,0.00018237,2]
[368633549,1751253443642,-460.0,0.00018237,2]
[368633550,1751253443663,-460.0,0.00018237,2]
[368633551,1751253443683,-460.0,0.00018237,2]
[368633552,1751253443705,-460.0,0.00018237,2]
[368633553,1751253443726,-460.0,0.00018237,2]
[368633554,1751253443746,-578.25647724,0.00018237,2]
[368633555,1751253443769,-705.37,0.00018237,2]
[368633556,1751253443791,-460.0,0.00018237,2]
[368633557,1751253443813,-460.0,0.00018237,2]
[368633558,1751253443836,-460.0,0.00018237,2]
[368633559,1751253443858,-480.67007645,0.00018237,2]
[368633560,1751253443880,-472.01041929,0.00018237,2]
[368633561,1751253443902,-460.0,0.00018237,2]
[368633562,1751253443924,-460.0,0.00018237,2]
[368633563,1751253443945,-460.0,0.00018237,2]
[368633564,1751253443967,-460.0,0.00018237,2]
[368633565,1751253443990,-460.0,0.00018237,2]
[368633566,1751253444011,-460.0,0.00018237,2]
[368633567,1751253444033,-500.0,0.00018238,2]
[368633568,1751253444056,-584.82,0.00018238,2]
[368633569,1751253444078,-460.0,0.00018238,2]
[368633570,1751253444100,-460.0,0.00018238,2]
[368633571,1751253444121,-460.0,0.00018238,2]
[368633572,1751253444144,-460.0,0.00018238,2]
[368633573,1751253444166,-460.0,0.00018238,2]
[368633574,1751253444187,-472.01363093,0.00018238,2]
[368633575,1751253444208,-462.72702027,0.00018238,2]
[368633576,1751253444230,-460.0,0.00018238,2]
[368633577,1751253444251,-460.0,0.00018238,2]
[368633578,1751253444272,-475.62420558,0.00018238,2]
[368633579,1751253444296,-2109.04,0.00018238,2]
[368633580,1751253444320,-814.19,0.00018238,2]
[368633581,1751253444341,-460.0,0.00018238,2]
[368633582,1751253444362,-432.42463614,0.00018238,2]
[368633583,1751253444384,-576.53,0.00018238,2]
[368633584,1751253444405,-469.76960247,0.00018238,2]
[368633585,1751253444425,-461.57300979,0.00018239,2]
[368633586,1751253444590,-460.0,0.00018239,2]
[368633587,1751253444613,-495.61,0.00018239,2]
[368633588,1751253444636,-460.0,0.00018239,2]
[368633589,1751253444657,-460.0,0.00018239,2]
[368633590,1751253444679,-460.0,0.00018239,2]
[368633591,1751253444699,-447.71042285,0.00018239,2]
[368633592,1751253444721,-460.0,0.00018239,2]
[368633593,1751253444742,-325.75108006,0.00018239,2]
[368633594,1751253444763,-464.85622415,0.00018239,2]
[368633595,1751253444783,-463.66971291,0.00018239,2]
[368633596,1751253444806,-462.92391788,0.00018239,2]
[368633597,1751253444827,-433.00541238,0.00018239,2]
[368633598,1751253444849,-397.81364651,0.00018239,2]
[368633599,1751253444869,-464.6615015,0.00018239,2]
[368633600,1751253444890,-464.37846495,0.00018239,2]
[368633601,1751253444911,-503.34554303,0.00018239,2]
[368633602,1751253444933,-468.9,0.00018239,2]
[368633603,1751253444954,-466.50614923,0.00018239,2]
[368633604,1751253444976,-460.0,0.00018239,2]
[368633605,1751253444999,-460.0,0.00018239,2]
[368633606,1751253445023,-849.74,0.00018239,2]
[368633607,1751253445045,-460.0,0.00018239,2]
[368633608,1751253445068,-460.0,0.00018239,2]
[368633609,1751253445091,-629.98,0.00018239,2]
[368633610,1751253445114,-460.0,0.00018239,2]
[368633611,1751253445135,-460.0,0.00018239,2]
[368633612,1751253445159,-544.71,0.00018239,2]
[368633613,1751253445182,-910.21,0.00018239,2]
[368633614,1751253445204,-214.24,0.00018239,2]
[368633615,1751253445228,-460.0,0.00018239,2]
[368633616,1751253445249,-151.0,0.0001824,2]
[368633617,1751253445272,-790.97,0.0001824,2]
[368633618,1751253445295,-189.895239,0.0001824,2]
[368633619,1751253445318,-2303.69,0.0001824,2]
[368633620,1751253445341,-734.62,0.0001824,2]
[368633621,1751253445362,-460.0,0.0001824,2]
[368633622,1751253445383,-460.0,0.00018241,2]
[368633623,1751253445405,-151.0,0.00018241,2]
[368633624,1751253445426,-151.0,0.00018241,2]
[368633625,1751253445448,-151.0,0.00018241,2]
[368633626,1751253445468,-460.0,0.00018241,2]
[368633627,1751253445489,-182.048863,0.00018241,2]
[368633628,1751253445510,-182.048863,0.00018241,2]
[368633629,1751253445531,-151.0,0.00018241,2]
[368633630,1751253445554,-500.0,0.0001825,2]
[368633631,1751253445576,-151.036952,0.0001825,2]
[368633632,1751253495311,-631.05,0.00018237,2]
[368633633,1751253495332,-469.70480583,0.00018237,2]
[368633634,1751253495356,-460.0,0.00018237,2]
[368633635,1751253495380,-460.0,0.00018238,2]
[368633636,1751253495403,-697.83,0.00018238,2]
[368633637,1751253495426,-535.34,0.00018238,2]
[368633638,1751253495447,-300.0,0.00018238,2]
[368633639,1751253495469,-460.0,0.00018238,2]
[368633640,1751253495490,-460.0,0.00018239,2]
[368633641,1751253495512,-460.0,0.00018239,2]
[368633642,1751253495534,-931.74,0.00018239,2]
[368633643,1751253495555,-29.28898685,0.0001825,2]
[368633644,1751253495576,-500.0,0.0001825,2]
[368633645,1751253495597,-500.0,0.0001825,2]
[368633646,1751253495622,-532.03866719,0.0001825,2]
[368633647,1751253495643,-500.0,0.0001825,2]
[368633648,1751253495667,-460.0,0.00018251,2]
[368633649,1751253495688,-460.0,0.00018251,2]
[368633650,1751253495709,-460.0,0.00018251,2]
[368633651,1751253495730,-460.0,0.00018251,2]
[368633652,1751253495751,-460.0,0.00018251,2]
[368633653,1751253495772,-524.0462212,0.00018251,2]
[368633654,1751253495793,-151.0,0.00018252,2]
[368633655,1751253495815,-151.0,0.00018252,2]
[368633656,1751253495837,-460.0,0.00018252,2]
[368633657,1751253495860,-182.048863,0.00018252,2]
[368633658,1751253495881,-182.048863,0.00018252,2]
[368633659,1751253495903,-151.0,0.00018252,2]
[368633660,1751253495925,-151.0,0.00018254,2]
[368633661,1751253495946,-151.0,0.00018254,2]
[368633662,1751253495968,-182.048863,0.00018254,2]
[368633663,1751253495990,-182.048863,0.00018254,2]